[Event "Summer Prague Open-A 2022"]
[Site "Prague"]
[Date "2022.08.06"]
[Round "2.14"]
[White "Sidletskyi, Ivan"]
[Black "Hrabusa, Matej"]
[Result "1-0"]
[ECO "B96"]
[WhiteElo "2075"]
[BlackElo "2354"]
[Annotator "TA"]
[PlyCount "131"]
[EventDate "2022.08.05"]
[EventType "swiss"]
[EventCountry "CZE"]
[SourceTitle "playchess.com"]
[Source "ChessBase"]
[SourceQuality "1"]
[TimeControl "40/5400+30:1800+30"]

{[%evp 15,131,27,13,0,0,0,0,0,7,7,4,7,11,4,7,11,15,10,8,11,0,-41,0,0,0,0,0,-55,42,39,64,76,65,55,162,172,175,93,129,54,62,28,31,26,110,97,146,38,35,0,52,35,104,118,97,77,77,41,44,52,43,40,44,43,36,41,213,173,271,272,397,469,472,460,416,357,477,472,604,566,675,668,657,651,579,554,586,493,550,537,548,522,506,502,678,669,715,705,860,829,1112,1112,1389,898,1673,1589,29960,29963,29969,29970,29975,29975,29976,29977,29979,29980,29977,29955]} 1. e4 {[%emt 0:00:15]} c5 {[%emt 0:04:06]} 2. Nf3 {[%emt 0:01:49]} d6 {[%emt 0:00:04]} 3. d4 {[%emt 0:01:04]} cxd4 {[%emt 0:00:05]} 4. Nxd4 {[%emt 0:00:17]} Nf6 {[%emt 0:00:03]} 5. Nc3 {[%emt 0:00:29]} a6 {[%emt 0:00:04]} 6. Bg5 {[%emt 0:00:46]} e6 {[%emt 0:00:13]} 7. f4 {[%emt 0:00:38]} h6 {[%emt 0:00:07]} 8. Bh4 {[%emt 0:00:49]} Qb6 {[%emt 0:00:05]} 9. Qd2 {[%emt 0:03:54] B96: Sicilian Najdorf: 6 Bg5 e6 7 f4, lines other than 7...Qb6 and 7...Be7.} Qxb2 {[%emt 0:00:08]} 10. Rb1 {[%emt 0:00:12]} Qa3 {[%emt 0:00:07]} 11. f5 {[%emt 0:02:32] The position is equal.} Be7 {[%emt 0:05:18]} 12. fxe6 {[%emt 0:03:21]} fxe6 {[%emt 0:00:08]} 13. Bc4 $1 {[%emt 0:02:35]} Nxe4 $1 {[%emt 0:01:27]} 14. Nxe4 {[%emt 0:01:20]} Bxh4+ {[%emt 0:00:07]} 15. g3 {[%emt 0:01:38]} Bg5 {[%emt 0:00:19]} 16. Nxg5 {[%emt 0:01:32]} hxg5 {[%emt 0:00:05]} 17. O-O {[%emt 0:05:45]} (17. Nxe6 Bxe6 18. Bxe6 (18. Rb3 $2 Qa4 $19) 18... Qxg3+ $1 19. hxg3 Rxh1+ 20. Kf2 Rh2+ 21. Ke3 Rxd2 22. Kxd2 Ra7 $15) 17... Qc5 {[%emt 0:10:58] [#]} 18. Bxe6 $146 {[%emt 0:14:58]} ({Predecessor:} 18. Qf2 Nc6 19. Nxe6 Qxf2+ 20. Rxf2 Bxe6 21. Bxe6 Rb8 22. Bd5 Ne5 23. Bxb7 Ke7 24. Rb3 {½-½ (32) Ortiz Suarez,I (2577)-Vachier Lagrave,M (2744) Baku 2015}) 18... Nc6 {[%emt 0:12:44]} 19. Bf7+ $1 {[%emt 0:10:03]} (19. Bxc8 $2 Nxd4 20. Qb4 Rxc8 $19) 19... Kd8 {[%emt 0:02:33]} 20. c3 {[%emt 0:01:39]} Kc7 {[%emt 0:06:26]} 21. Rf2 {[%emt 0:04:20]} (21. Bg6 $11) 21... g4 {[%emt 0:10:38]} (21... Rf8 $1 $15) 22. Be6 $14 {[%emt 0:14:23] Hoping for Bxc8.} Nd8 {[%emt 0:07:42]} 23. Rf5 {[%emt 0:06:59]} Qa7 {[%emt 0:04:13]} 24. Kh1 {[%emt 0:02:11] 0x0.0005ecbda66fdp-1022s more active pieces.} Re8 {[%emt 0:10:52]} (24... Bxe6 25. Nxe6+ Nxe6 26. Rf7+ Kc6 27. Qg2+ d5 28. c4 $11) (24... g6 $1 $14 25. Rf6 Qc5) 25. Bxc8 $18 {[%emt 0:03:51]} Rxc8 {[%emt 0:00:50] [#]} 26. Qf4 {[%emt 0:01:07]} (26. Ra5 $1 $18 {Nb5+ is the strong threat.} Re5 {[#]} 27. Nf5 $1 (27. Nb5+ Rxb5 28. Rbxb5 Nc6 $16)) 26... Re7 {[%emt 0:05:30]} 27. Rd5 {[%emt 0:02:09]} ({Resist} 27. Qxg4 Kb8) ({White should try} 27. Ra5 $16 {And now Nb5+ would win.} Qa8 28. Nb5+ (28. Rd5 Nf7 $14) (28. Rc5+ Nc6 $14) 28... Kd7 29. Kg1 (29. Qxd6+ Ke8 $14) (29. Qxg4+ Ne6 $11)) 27... Nf7 $1 $14 {[%emt 0:03:38]} 28. Qxg4 {[%emt 0:02:29]} Kb8 {[%emt 0:02:54]} 29. Qxg7 {[%emt 0:01:17][%cal Od4c6] Threatens to win with Nc6+!} Rec7 {[%emt 0:00:34] Prevents Nc6+.} (29... b5 $11 {remains equal.} 30. Kg1 Ka8) 30. Qf6 $16 {[%emt 0:02:22]} Ka8 {[%emt 0:02:54]} (30... b6 $142) 31. Qf2 {[%emt 0:04:02]} (31. Qe6 $16) 31... Ne5 $14 {[%emt 0:01:40]} 32. Rb3 {[%emt 0:02:47]} Nc4 {[%emt 0:01:58]} (32... Rf7 $11 33. Qe1 Qb8) 33. Rf5 {[%emt 0:01:22]} Rc5 {[%emt 0:02:16]} (33... Qb8 $14) 34. Rf7 $16 {[%emt 0:00:36]} Na5 {[%emt 0:01:16][%csl LRb3,LRc3]} 35. Rb1 $40 {[%emt 0:01:06][%mdl 128] White has strong attack.} Rxc3 {[%emt 0:00:50]} 36. Ne6 {[%emt 0:01:06] Against Qc5} Qxf2 {[%emt 0:01:14]} 37. Rxf2 {[%emt 0:00:02]} Nc4 {[%emt 0:00:33]} 38. Rb3 {[%emt 0:01:08]} Ne3 $1 {[%emt 0:01:20] ( -> ...Rc1+)} 39. Rxc3 {[%emt 0:00:13]} Rxc3 $14 {[%emt 0:00:05][%mdl 4096] Endgame KRN-KRN} 40. h3 {[%emt 0:00:15] aiming for g4.} Rc1+ $2 {[%emt 0:02:09] Black cannot hold the game after this.} ({Better is} 40... Nd1 $1 $14 41. Rf1 Ne3) 41. Kh2 $18 {[%emt 0:30:52]} Re1 {[%emt 0:11:42]} (41... Nf1+ {was worth a try.} 42. Kg2 Ne3+ 43. Kf3 Nc4) 42. Nf4 {[%emt 0:00:00]} b5 {[%emt 0:05:56]} (42... Kb8 $142 43. g4 Nf1+ 44. Kg2 Ne3+ 45. Kh2 Nf1+ 46. Kg2 Ne3+ 47. Kh2) 43. g4 {[%emt 0:00:00]} Nf1+ {[%emt 0:07:24]} 44. Kg2 {[%emt 0:00:00]} Ne3+ {[%emt 0:00:08]} 45. Kf3 {[%emt 0:00:00] Strongly threatening Re2.} Nc4 {[%emt 0:01:42]} 46. g5 {[%emt 0:00:00]} Ne5+ {[%emt 0:02:07]} 47. Kg2 {[%emt 0:00:00]} b4 {[%emt 0:03:50]} 48. g6 {[%emt 0:00:00]} Nxg6 {[%emt 0:00:39]} 49. Nxg6 {[%emt 0:00:00] KRN-KR} a5 {[%emt 0:00:08]} 50. Nf4 {[%emt 0:00:00] Inhibits Re6.} a4 {[%emt 0:00:22]} 51. Nd3 {[%emt 0:00:00]} Re4 {[%emt 0:00:44]} 52. Kf3 {[%emt 0:00:00]} Rd4 {[%emt 0:01:04]} 53. Ke3 {[%emt 0:00:00]} Rh4 {[%emt 0:00:07]} 54. Nf4 {[%emt 0:00:00]} Rh8 {[%emt 0:00:36]} 55. Rb2 {[%emt 0:00:00]} Re8+ {[%emt 0:01:05]} 56. Kd3 {[%emt 0:00:00]} Rb8 {[%emt 0:00:35]} 57. h4 {[%emt 0:00:00][%cal Bh3h4,Bh4h5,Bh5h6,Bh6h7][%mdl 32]} b3 {[%emt 0:00:38]} 58. axb3 {[%emt 0:00:00]} Rb4 {[%emt 0:01:13]} 59. Ke3 {[%emt 0:00:00]} a3 {[%emt 0:00:10]} 60. Ra2 {[%emt 0:00:00]} Rxb3+ {[%emt 0:00:06]} 61. Ke4 {[%emt 0:00:00] White mates.} Kb7 {[%emt 0:01:11]} 62. h5 {[%emt 0:00:00]} Kc6 {[%emt 0:00:46]} 63. h6 {[%emt 0:00:00]} d5+ {[%emt 0:00:04]} 64. Kf5 {[%emt 0:00:00]} d4 {[%emt 0:01:00]} 65. h7 {[%emt 0:00:00]} Rb5+ {[%emt 0:00:04]} 66. Ke4 {Weighted Error Value: White=0.19 (very precise) /Black=0.46} 1-0

[Event "Summer Prague Open-A 2022"]
[Site "Prague"]
[Date "2022.08.06"]
[Round "2.15"]
[White "Sarkar, Justin"]
[Black "Vecera, Dominik"]
[Result "1/2-1/2"]
[ECO "A57"]
[WhiteElo "2346"]
[BlackElo "2066"]
[Annotator "RC"]
[PlyCount "70"]
[EventDate "2022.08.05"]
[EventType "swiss"]
[EventCountry "CZE"]
[SourceTitle "playchess.com"]
[Source "ChessBase"]
[SourceQuality "1"]
[TimeControl "40/5400+30:1800+30"]

1. d4 {[%emt 0:00:46]} Nf6 {[%emt 0:00:26]} 2. c4 {[%emt 0:00:35]} c5 {[%emt 0:00:23]} 3. d5 {[%emt 0:00:32]} b5 {[%emt 0:00:10]} 4. cxb5 {[%emt 0:00:51]} a6 {[%emt 0:00:16]} 5. e3 {[%emt 0:09:31]} e6 {[%emt 0:12:28]} 6. Nc3 {[%emt 0:00:37]} axb5 {[%emt 0:10:23]} 7. Bxb5 {[%emt 0:01:04]} Ba6 {[%emt 0:04:03]} 8. Bxa6 {[%emt 0:02:11]} Nxa6 {[%emt 0:00:22]} 9. e4 {[%emt 0:07:29]} Qa5 {[%emt 0:09:21]} 10. dxe6 {[%emt 0:05:00]} dxe6 {[%emt 0:16:07]} 11. e5 {[%emt 0:00:27]} Nd5 {[%emt 0:17:56]} 12. Nge2 {[%emt 0:03:25]} Nab4 {[%emt 0:01:15]} 13. O-O {[%emt 0:00:49]} Be7 {[%emt 0:01:17]} 14. a3 {[%emt 0:06:09]} Qa6 {[%emt 0:04:35]} 15. Bh6 {[%emt 0:08:38]} Nd3 {[%emt 0:04:58]} 16. Nxd5 {[%emt 0:03:20]} exd5 {[%emt 0:00:38]} 17. Bxg7 {[%emt 0:00:10]} Rg8 {[%emt 0:00:31]} 18. Bf6 {[%emt 0:00:09]} c4 {[%emt 0:06:51]} 19. Nc1 {[%emt 0:10:00]} Nf4 {[%emt 0:03:34]} 20. g3 {[%emt 0:00:22]} Bxf6 {[%emt 0:03:19]} 21. exf6 {[%emt 0:00:12]} Qxf6 {[%emt 0:00:25]} 22. Kh1 {[%emt 0:00:57]} Qf5 {[%emt 0:01:35]} 23. Qf3 {[%emt 0:04:22]} Qh3 {[%emt 0:00:14]} 24. Re1+ {[%emt 0:00:10]} Ne6 {[%emt 0:00:01]} 25. Qxd5 {[%emt 0:00:12]} Rd8 {[%emt 0:00:02]} 26. Qxc4 {[%emt 0:01:50]} Rg5 {[%emt 0:01:09]} 27. Qf1 {[%emt 0:03:57]} Qf5 {[%emt 0:00:27]} 28. f4 {[%emt 0:03:00]} Rh5 {[%emt 0:00:45]} 29. Qg2 {[%emt 0:05:13]} Qg4 {[%emt 0:00:29]} 30. a4 {[%emt 0:04:39]} Kf8 {[%emt 0:00:34]} 31. Ne2 {[%emt 0:04:37]} Rd2 {[%emt 0:00:37]} 32. Rad1 {[%emt 0:13:25]} Rxb2 {[%emt 0:00:08]} 33. Rb1 {[%emt 0:00:19]} Ra2 {[%emt 0:00:39]} 34. Ra1 {[%emt 0:00:32]} Rd2 {[%emt 0:00:39]} 35. Rad1 {[%emt 0:01:17]} Ra2 {[%emt 0:00:35]} 1/2-1/2

[Event "Summer Prague Open-A 2022"]
[Site "Prague"]
[Date "2022.08.06"]
[Round "2.16"]
[White "Zimmermann, Luc"]
[Black "Ranaldi, Lucas"]
[Result "0-1"]
[ECO "B19"]
[WhiteElo "2074"]
[BlackElo "2339"]
[Annotator "RC"]
[PlyCount "98"]
[EventDate "2022.08.05"]
[EventType "swiss"]
[EventCountry "CZE"]
[SourceTitle "playchess.com"]
[Source "ChessBase"]
[SourceQuality "1"]
[TimeControl "40/5400+30:1800+30"]

1. e4 {[%emt 0:00:05]} c6 {[%emt 0:00:46]} 2. d4 {[%emt 0:00:12]} d5 {[%emt 0:00:06]} 3. Nc3 {[%emt 0:00:05]} dxe4 {[%emt 0:00:06]} 4. Nxe4 {[%emt 0:00:10]} Bf5 {[%emt 0:00:06]} 5. Ng3 {[%emt 0:00:08]} Bg6 {[%emt 0:00:05]} 6. h4 {[%emt 0:00:10]} h6 {[%emt 0:00:07]} 7. Nf3 {[%emt 0:00:09]} Nd7 {[%emt 0:00:15]} 8. h5 {[%emt 0:00:09]} Bh7 {[%emt 0:00:05]} 9. Bd3 {[%emt 0:00:07]} Bxd3 {[%emt 0:00:07]} 10. Qxd3 {[%emt 0:00:03]} e6 {[%emt 0:00:11]} 11. Bd2 {[%emt 0:00:15]} Ngf6 {[%emt 0:00:44]} 12. O-O-O {[%emt 0:00:15]} Be7 {[%emt 0:01:16]} 13. Ne4 {[%emt 0:00:45]} Nxe4 {[%emt 0:00:19]} 14. Qxe4 {[%emt 0:00:04]} Nf6 {[%emt 0:00:17]} 15. Qe2 {[%emt 0:00:09]} Qd5 {[%emt 0:02:18]} 16. c4 {[%emt 0:00:09]} Qe4 {[%emt 0:00:22]} 17. Qxe4 {[%emt 0:00:03]} Nxe4 {[%emt 0:00:14]} 18. Be3 {[%emt 0:00:07]} f5 {[%emt 0:00:58]} 19. Kc2 {[%emt 0:00:10]} O-O {[%emt 0:06:46]} 20. Rde1 {[%emt 0:19:24]} Bf6 {[%emt 0:07:17]} 21. Re2 {[%emt 0:29:53]} b5 {[%emt 0:06:59]} 22. Bf4 {[%emt 0:12:07]} Rfd8 {[%emt 0:08:23]} 23. Rd1 {[%emt 0:02:28]} bxc4 {[%emt 0:00:52]} 24. Ne5 {[%emt 0:02:17]} Bxe5 {[%emt 0:13:36]} 25. Bxe5 {[%emt 0:04:18]} Rd5 {[%emt 0:22:42]} 26. f3 {[%emt 0:19:41]} Ng5 {[%emt 0:00:40]} 27. Bf4 {[%emt 0:05:08]} Kf7 {[%emt 0:00:39]} 28. Rde1 {[%emt 0:02:10]} Re8 {[%emt 0:02:46]} 29. Kc3 {[%emt 0:01:10]} Nh7 {[%emt 0:03:45]} 30. Be5 {[%emt 0:01:23]} c5 {[%emt 0:06:54]} 31. dxc5 {[%emt 0:00:01]} Rxc5 {[%emt 0:00:15]} 32. Rd1 {[%emt 0:00:37]} Rd5 {[%emt 0:01:01]} 33. Rd4 {[%emt 0:01:22]} Rxd4 {[%emt 0:06:17]} 34. Kxd4 {[%emt 0:00:20]} Nf6 {[%emt 0:03:29]} 35. Bxf6 {[%emt 0:01:24]} Kxf6 {[%emt 0:00:02]} 36. f4 {[%emt 0:00:46]} Rc8 {[%emt 0:02:28]} 37. Rc2 {[%emt 0:00:32]} Rd8+ {[%emt 0:04:21]} 38. Kxc4 {[%emt 0:00:00]} e5 {[%emt 0:00:10]} 39. fxe5+ {[%emt 0:00:12]} Kxe5 {[%emt 0:00:02]} 40. Kb5 {[%emt 0:01:23]} Rd7 {[%emt 0:01:16]} 41. Kc6 {[%emt 0:11:07]} Rd4 {[%emt 0:03:14]} 42. Rc5+ {[%emt 0:08:21]} Kf6 {[%emt 0:01:31]} 43. Ra5 {[%emt 0:00:47]} Rd2 {[%emt 0:00:29]} 44. b4 {[%emt 0:00:16]} Rxg2 {[%emt 0:03:42]} 45. Rxa7 {[%emt 0:02:41]} f4 {[%emt 0:02:10]} 46. Ra8 {[%emt 0:05:20]} Ke7 {[%emt 0:01:09]} 47. Kd5 {[%emt 0:02:27]} f3 {[%emt 0:03:23]} 48. Ra3 {[%emt 0:01:21]} Rd2+ {[%emt 0:01:13]} 49. Kc6 {[%emt 0:01:13]} Rd6+ {[%emt 0:01:36]} 0-1

[Event "Summer Prague Open-A 2022"]
[Site "Prague"]
[Date "2022.08.06"]
[Round "2.17"]
[White "Risting, Eivind Olav"]
[Black "Hansch, Torsten"]
[Result "1-0"]
[ECO "D37"]
[WhiteElo "2325"]
[BlackElo "2055"]
[Annotator "RC"]
[PlyCount "85"]
[EventDate "2022.08.05"]
[EventType "swiss"]
[EventCountry "CZE"]
[SourceTitle "playchess.com"]
[Source "ChessBase"]
[SourceQuality "1"]
[TimeControl "40/5400+30:1800+30"]

1. d4 {[%emt 0:00:12]} d5 {[%emt 0:00:09]} 2. c4 {[%emt 0:00:22]} e6 {[%emt 0:00:17]} 3. Nc3 {[%emt 0:00:24]} Be7 {[%emt 0:00:21]} 4. Nf3 {[%emt 0:00:30]} Nf6 {[%emt 0:00:21]} 5. Bf4 {[%emt 0:00:27]} O-O {[%emt 0:00:30]} 6. e3 {[%emt 0:00:42]} Nbd7 {[%emt 0:00:28]} 7. c5 {[%emt 0:05:07]} c6 {[%emt 0:00:27]} 8. Bd3 {[%emt 0:01:22]} b6 {[%emt 0:00:35]} 9. b4 {[%emt 0:00:34]} a5 {[%emt 0:00:32]} 10. a3 {[%emt 0:00:44]} Ba6 {[%emt 0:00:41]} 11. O-O {[%emt 0:03:56]} Qc8 {[%emt 0:00:36]} 12. Na4 {[%emt 0:09:49]} Bxd3 {[%emt 0:02:38]} 13. Qxd3 {[%emt 0:02:28]} b5 {[%emt 0:00:22]} 14. Nc3 {[%emt 0:02:03]} Qb7 {[%emt 0:01:51]} 15. Nd2 {[%emt 0:05:54]} axb4 {[%emt 0:06:15]} 16. axb4 {[%emt 0:00:05]} Rxa1 {[%emt 0:00:19]} 17. Rxa1 {[%emt 0:00:03]} Ra8 {[%emt 0:00:12]} 18. Qb1 {[%emt 0:00:41]} Ra6 {[%emt 0:04:13]} 19. h3 {[%emt 0:10:55]} Qa8 {[%emt 0:01:36]} 20. Rxa6 {[%emt 0:02:06]} Qxa6 {[%emt 0:01:11]} 21. Qb2 {[%emt 0:00:17]} Bd8 {[%emt 0:11:33]} 22. Nb3 {[%emt 0:06:08]} Ne8 {[%emt 0:01:36]} 23. f3 {[%emt 0:10:12]} Bc7 {[%emt 0:02:31]} 24. Bxc7 {[%emt 0:00:16]} Nxc7 {[%emt 0:00:03]} 25. e4 {[%emt 0:02:42]} f6 {[%emt 0:04:52]} 26. Na5 {[%emt 0:02:40]} Qa8 {[%emt 0:03:07]} 27. Qe2 {[%emt 0:08:39]} Kf7 {[%emt 0:10:27]} 28. Kf2 {[%emt 0:00:38]} Nb8 {[%emt 0:05:20]} 29. Qd2 {[%emt 0:01:17]} Nba6 {[%emt 0:04:23]} 30. Ne2 {[%emt 0:05:53]} Ne8 {[%emt 0:07:10]} 31. Nf4 {[%emt 0:02:03]} Qc8 {[%emt 0:00:55]} 32. Nd3 {[%emt 0:00:49]} Qc7 {[%emt 0:08:39]} 33. Nb3 {[%emt 0:04:45]} Nb8 {[%emt 0:06:10]} 34. Qa2 {[%emt 0:01:12]} Qb7 {[%emt 0:04:37]} 35. Qe2 {[%emt 0:02:02]} Qd7 {[%emt 0:02:27]} 36. Qe3 {[%emt 0:00:51]} Qc7 {[%emt 0:02:05]} 37. g3 {[%emt 0:01:47]} Na6 {[%emt 0:02:36]} 38. Kg2 {[%emt 0:00:47]} Nb8 {[%emt 0:02:13]} 39. h4 {[%emt 0:00:23]} Na6 {[%emt 0:03:27]} 40. g4 {[%emt 0:00:00]} g6 41. g5 Ng7 {[%emt 0:14:07]} 42. gxf6 {[%emt 0:11:31]} Nh5 {[%emt 0:02:44]} 43. e5 {[%emt 0:05:24]} 1-0

[Event "Summer Prague Open-A 2022"]
[Site "Prague"]
[Date "2022.08.06"]
[Round "2.18"]
[White "Kulhanek, Tomas"]
[Black "Saypuri Srithan"]
[Result "1-0"]
[ECO "C43"]
[WhiteElo "2319"]
[BlackElo "1923"]
[Annotator "RC"]
[PlyCount "107"]
[EventDate "2022.08.05"]
[EventType "swiss"]
[EventCountry "CZE"]
[SourceTitle "playchess.com"]
[Source "ChessBase"]
[SourceQuality "1"]
[TimeControl "40/5400+30:1800+30"]

1. e4 {[%emt 0:10:13]} e5 {[%emt 0:00:24]} 2. Nf3 {[%emt 0:00:12]} Nf6 {[%emt 0:00:02]} 3. d4 {[%emt 0:03:53]} Nxe4 {[%emt 0:00:05]} 4. Bd3 {[%emt 0:00:52]} d5 {[%emt 0:00:05]} 5. dxe5 {[%emt 0:00:49]} Nc5 {[%emt 0:00:47]} 6. Be2 {[%emt 0:01:15]} Be7 {[%emt 0:02:21]} 7. O-O {[%emt 0:03:34]} Ne6 {[%emt 0:04:43]} 8. Nc3 {[%emt 0:10:41]} c6 {[%emt 0:07:25]} 9. Re1 {[%emt 0:03:13]} Nd7 {[%emt 0:03:47]} 10. Bf1 {[%emt 0:00:55]} Qc7 {[%emt 0:06:14]} 11. Nb1 {[%emt 0:04:22]} b5 {[%emt 0:08:55]} 12. a4 {[%emt 0:02:55]} bxa4 {[%emt 0:03:02]} 13. c4 {[%emt 0:01:10]} dxc4 {[%emt 0:07:32]} 14. Qxa4 {[%emt 0:05:49]} Nb6 {[%emt 0:02:37]} 15. Qc2 {[%emt 0:01:03]} O-O {[%emt 0:01:05]} 16. Na3 {[%emt 0:06:14]} Bxa3 {[%emt 0:16:57]} 17. Rxa3 {[%emt 0:00:41]} c5 {[%emt 0:00:46]} 18. Ng5 {[%emt 0:07:06]} Nxg5 {[%emt 0:02:49]} 19. Bxg5 {[%emt 0:01:45]} Bg4 {[%emt 0:07:43]} 20. Rg3 {[%emt 0:04:52]} Qd7 {[%emt 0:05:48]} 21. e6 {[%emt 0:13:47]} Bxe6 {[%emt 0:01:52]} 22. Bh6 {[%emt 0:03:50]} Bg4 {[%emt 0:03:10]} 23. Bxg7 {[%emt 0:04:47]} Kxg7 {[%emt 0:01:12]} 24. h3 {[%emt 0:00:14]} f5 {[%emt 0:06:02]} 25. hxg4 {[%emt 0:00:29]} fxg4 {[%emt 0:01:57]} 26. Qc3+ {[%emt 0:03:46]} Rf6 {[%emt 0:00:39]} 27. Re5 {[%emt 0:00:50]} Qd4 {[%emt 0:02:09]} 28. Qxd4 {[%emt 0:01:53]} cxd4 {[%emt 0:00:12]} 29. Rxg4+ {[%emt 0:00:04]} Kh8 {[%emt 0:00:36]} 30. Rxd4 {[%emt 0:00:14]} Raf8 {[%emt 0:00:06]} 31. f3 {[%emt 0:00:35]} Rf4 {[%emt 0:00:27]} 32. Rxf4 {[%emt 0:02:48]} Rxf4 {[%emt 0:00:03]} 33. Kf2 {[%emt 0:00:43]} Rd4 {[%emt 0:00:41]} 34. Ke3 {[%emt 0:00:42]} Rd1 {[%emt 0:00:13]} 35. Be2 {[%emt 0:00:15]} Rb1 {[%emt 0:02:30]} 36. Rb5 {[%emt 0:00:22]} Na4 {[%emt 0:01:37]} 37. Bxc4 {[%emt 0:01:07]} Nxb2 {[%emt 0:00:53]} 38. Rb8+ {[%emt 0:00:57]} Kg7 {[%emt 0:00:05]} 39. Rg8+ {[%emt 0:00:31]} Kf6 {[%emt 0:00:05]} 40. Be2 {[%emt 0:00:30]} a5 {[%emt 0:01:52]} 41. Rf8+ {[%emt 0:05:32]} Kg7 {[%emt 0:06:27]} 42. Ra8 {[%emt 0:00:14]} a4 {[%emt 0:00:46]} 43. Ra7+ {[%emt 0:05:53]} Kg6 {[%emt 0:00:29]} 44. Ra6+ {[%emt 0:00:15]} Kg7 {[%emt 0:00:25]} 45. f4 {[%emt 0:05:35]} Ra1 {[%emt 0:10:26]} 46. g4 {[%emt 0:07:19]} a3 {[%emt 0:06:10]} 47. g5 {[%emt 0:04:22]} a2 {[%emt 0:02:32]} 48. f5 {[%emt 0:01:04]} Nc4+ {[%emt 0:01:40]} 49. Kf4 {[%emt 0:00:47]} Nd6 {[%emt 0:01:25]} 50. f6+ {[%emt 0:01:11]} Kg6 {[%emt 0:02:34]} 51. Ra7 {[%emt 0:01:03]} Nf7 {[%emt 0:02:18]} 52. Bd3+ {[%emt 0:01:01]} Kh5 {[%emt 0:00:05]} 53. Rxf7 {[%emt 0:00:39]} h6 {[%emt 0:00:04]} 54. Rh7 {[%emt 0:00:43]} 1-0

[Event "Summer Prague Open-A 2022"]
[Site "Prague"]
[Date "2022.08.06"]
[Round "2.19"]
[White "Jonsson, Gauti Pall"]
[Black "Sorm, Daniel"]
[Result "1/2-1/2"]
[ECO "B30"]
[WhiteElo "2071"]
[BlackElo "2308"]
[Annotator "RC"]
[PlyCount "96"]
[EventDate "2022.08.05"]
[EventType "swiss"]
[EventCountry "CZE"]
[SourceTitle "playchess.com"]
[Source "ChessBase"]
[SourceQuality "1"]
[TimeControl "40/5400+30:1800+30"]

1. e4 {[%emt 0:00:18]} c5 {[%emt 0:00:35]} 2. Nf3 {[%emt 0:00:45]} Nc6 {[%emt 0:01:24]} 3. Bc4 {[%emt 0:00:52]} g6 {[%emt 0:05:28]} 4. O-O {[%emt 0:01:12]} Bg7 {[%emt 0:01:47]} 5. c3 {[%emt 0:01:59]} e6 {[%emt 0:02:02]} 6. d4 {[%emt 0:06:06]} cxd4 {[%emt 0:00:28]} 7. cxd4 {[%emt 0:00:31]} d5 {[%emt 0:00:18]} 8. exd5 {[%emt 0:01:42]} exd5 {[%emt 0:00:11]} 9. Bb5 {[%emt 0:01:01]} Nge7 {[%emt 0:00:27]} 10. Bg5 {[%emt 0:04:38]} f6 {[%emt 0:04:29]} 11. Bf4 {[%emt 0:02:49]} g5 {[%emt 0:02:49]} 12. Bd2 {[%emt 0:10:07]} O-O {[%emt 0:01:43]} 13. Bc3 {[%emt 0:03:14]} Bg4 {[%emt 0:05:29]} 14. Nbd2 {[%emt 0:04:13]} Qd7 {[%emt 0:10:01]} 15. Qb3 Ng6 {[%emt 0:03:26]} 16. Bb4 {[%emt 0:12:18]} Rf7 {[%emt 0:08:35]} 17. Rfe1 {[%emt 0:03:28]} Nf4 {[%emt 0:01:26]} 18. Re3 {[%emt 0:07:48]} Bxf3 {[%emt 0:19:48]} 19. Nxf3 {[%emt 0:06:04]} g4 {[%emt 0:00:10]} 20. Bxc6 {[%emt 0:05:00]} Qxc6 {[%emt 0:00:06]} 21. Ne1 {[%emt 0:02:56]} f5 {[%emt 0:00:10]} 22. Nd3 {[%emt 0:02:05]} Nxd3 {[%emt 0:01:06]} 23. Qxd3 {[%emt 0:00:38]} Qc4 {[%emt 0:05:33]} 24. Bc3 {[%emt 0:05:18]} Qxd3 {[%emt 0:01:42]} 25. Rxd3 {[%emt 0:00:06]} Re8 {[%emt 0:00:14]} 26. Re1 {[%emt 0:00:37]} Rxe1+ {[%emt 0:05:46]} 27. Bxe1 {[%emt 0:00:08]} Re7 {[%emt 0:00:20]} 28. Kf1 {[%emt 0:01:45]} Kf7 {[%emt 0:01:14]} 29. h3 {[%emt 0:00:59]} h5 {[%emt 0:00:22]} 30. hxg4 {[%emt 0:00:05]} fxg4 {[%emt 0:01:11]} 31. f3 {[%emt 0:01:15]} Kg6 {[%emt 0:01:47]} 32. Bh4 {[%emt 0:01:35]} Rc7 {[%emt 0:02:09]} 33. Rc3 {[%emt 0:00:42]} Rc4 {[%emt 0:03:02]} 34. fxg4 {[%emt 0:00:48]} Bxd4 {[%emt 0:09:15]} 35. gxh5+ {[%emt 0:05:16]} Kxh5 {[%emt 0:00:05]} 36. Rxc4 {[%emt 0:00:14]} dxc4 {[%emt 0:00:04]} 37. Bf2 {[%emt 0:00:16]} Bxb2 {[%emt 0:00:17]} 38. Bxa7 {[%emt 0:00:10]} c3 {[%emt 0:00:15]} 39. Bd4 {[%emt 0:00:20]} Ba1 {[%emt 0:00:15]} 40. Be3 {[%emt 0:00:08]} Bb2 {[%emt 0:03:04]} 41. Bd4 {[%emt 0:30:19]} Ba1 {[%emt 0:05:37]} 42. Be3 {[%emt 0:00:00]} Kg4 {[%emt 0:03:07]} 43. Ke2 {[%emt 0:00:00]} Kg3 {[%emt 0:00:33]} 44. Kd3 {[%emt 0:00:00]} Kxg2 {[%emt 0:00:23]} 45. Kc2 {[%emt 0:00:00]} Kf3 {[%emt 0:00:26]} 46. Bd4 {[%emt 0:00:00]} Ke4 {[%emt 0:00:13]} 47. Bxc3 {[%emt 0:00:00]} Bxc3 {[%emt 0:00:06]} 48. Kxc3 {[%emt 0:00:00]} Kd5 {[%emt 0:00:06]} 1/2-1/2